fUSD/lending_fUSD_20250330
["ID","MTS","AMOUNT","RATE_DAILY","PERIOD"]
[356862819,1743342636295,-999.0,0.00052082,120]
[356862820,1743342636306,-999.0,0.00052082,120]
[356862821,1743342636315,-999.0,0.00052082,120]
[356862822,1743342636325,-999.0,0.00052082,120]
[356862823,1743342636335,-169.19714274,0.00052082,120]
[356862824,1743342636344,-253.40649,0.000522,120]
[356862825,1743342636353,-1000.0,0.000523,120]
[356862826,1743342636362,-300.2,0.00052313,2]
[356862827,1743342636371,-501.83697099,0.00052328,46]
[356862828,1743342636380,-1546.70378209,0.0005243,120]
[356862829,1743342636389,-660.68595521,0.0005243,120]
[356862830,1743342636398,-150.0,0.00052507,120]
[356862831,1743342636407,-613.0,0.00052589,8]
[356862832,1743342636416,-154.70322716,0.00052654,120]
[356862833,1743342636426,-152.0,0.00052799,4]
[356862834,1743342636437,-152.0,0.00052799,5]
[356862835,1743342636446,-1546.70378209,0.00052841,120]
[356862836,1743342636456,-660.68595521,0.00052841,120]
[356862837,1743342636465,-400.0,0.0005297,7]
[356862838,1743342636474,-1000.0,0.00052999,120]
[356862839,1743342636483,-574.4128201,0.00053,2]
[356862840,1743342636493,-1811.71245959,0.00053,120]
[356862841,1743342636588,-68000.0,0.00053,120]
[356862842,1743342636610,-950.0,0.00053,2]
[356862843,1743342636619,-19896.55,0.0005321,120]
[356862844,1743342636629,-1546.70378209,0.00053253,120]
[356862845,1743342636639,-660.68595521,0.00053253,120]
[356862846,1743342636648,-2266.08,0.000533,60]
[356862847,1743342636657,-445.11753037,0.0005331,2]
[356862848,1743342636667,-253.40649,0.000534,120]
[356862849,1743342636678,-154.70322716,0.00053403,120]
[356862850,1743342636689,-2000.0,0.0005344,30]
[356862851,1743342636699,-150.0,0.00053591,120]
[356862852,1743342636710,-1546.70378209,0.00053665,120]
[356862853,1743342636722,-660.68595521,0.00053665,120]
[356862854,1743342636733,-51494.08186067,0.0005379,30]
[356862855,1743342636743,-151.29,0.0005399,120]
[356862856,1743342636753,-182.50891526,0.0005399,7]
[356862857,1743342636765,-1000.0,0.00053999,120]
[356862858,1743342636775,-171.28293621,0.00053999,5]
[356862859,1743342636784,-370586.687,0.00054,120]
[356862860,1743342636794,-1000000.0,0.00054,120]
[356862861,1743342636804,-300.0,0.00054,120]
[356862862,1743342636813,-4507.42924398,0.00054,30]
[356862863,1743342636822,-151.0,0.00054,120]
[356862864,1743342636832,-151.0,0.00054,120]
[356862865,1743342636842,-151.0,0.00054,120]
[356862866,1743342636851,-155.68166,0.00054,120]
[356862867,1743342636860,-9000.0,0.00054,120]
[356862868,1743342636870,-9000.0,0.00054,120]
[356862869,1743342636879,-9000.0,0.00054,120]
[356862870,1743342636888,-9000.0,0.00054,120]
[356862871,1743342636897,-1096.850263,0.00054,120]
[356862872,1743342636906,-1096.850263,0.00054,120]
[356862873,1743342636915,-1096.850263,0.00054,120]
[356862874,1743342636924,-1096.850263,0.00054,120]
[356862875,1743342636934,-296.075494,0.00054,120]
[356862876,1743342636943,-296.075494,0.00054,120]
[356862877,1743342636952,-296.075494,0.00054,120]
[356862878,1743342636962,-296.075494,0.00054,120]
[356862879,1743342636971,-1546.70378209,0.00054077,120]
[356862880,1743342636980,-660.68595521,0.00054077,120]
[356862881,1743342636989,-154.70322716,0.00054151,120]
[356862882,1743342636998,-296.39,0.00054326,2]
[356862883,1743342637007,-2213.21361931,0.000544,30]
[356862884,1743342637016,-4767.91805949,0.000544,120]
[356862885,1743342637026,-2794.84211039,0.000544,2]
[356862886,1743342637035,-2000.0,0.0005444,35]
[356862887,1743342637044,-1546.70378209,0.00054488,120]
[356862888,1743342637053,-660.68595521,0.00054488,120]
[356862889,1743342637063,-260.4820888,0.000545,61]
[356862890,1743342637072,-10748.51696038,0.000545,41]
[356862891,1743342637103,-43958.63046973,0.000545,41]
[356862892,1743342637113,-197243.11174362,0.000545,120]
[356862903,1743342637695,-150.0,0.0005044,30]
[356862905,1743342637704,-8406.1691992,0.000545,120]
[356862907,1743342637716,-29025.48062358,0.000545,120]
[356862909,1743342637732,-11644.44866561,0.000545,120]
[356862915,1743342637772,-304.28076881,0.000545,120]
[356862917,1743342637783,-11643.52523412,0.000545,120]
[356862919,1743342637794,-151821.56748842,0.000545,120]
[356862949,1743342639898,-704.0,0.0005,7]
[356862950,1743342639908,-150.0,0.00051,120]
[356862951,1743342639917,-58485.94306812,0.000545,120]
[356862952,1743342640010,-12842.25,0.000545,120]
[356862953,1743342640021,-252397.941959,0.000545,120]
[356862954,1743342640033,-539.87109361,0.000545,120]
[356862955,1743342640056,-3300.0,0.000545,120]
[356862956,1743342640075,-338.06224798,0.000545,120]
[356862957,1743342640099,-150.0,0.000512,120]
[356862958,1743342640108,-120.29898099,0.000545,120]
[356862984,1743342643267,-150.0,0.0005178,43]
[356862985,1743342643277,-756.34619508,0.00053859,2]
[356862986,1743342643289,-2202.3441625,0.00053859,2]
[356862994,1743342645124,-20941.30964242,0.00053859,2]
[356862995,1743342645134,-26777.74857661,0.000545,120]
[356862996,1743342645145,-2474.00495601,0.000545,120]
[356862997,1743342645159,-84635.29539432,0.000545,120]
[356862998,1743342645169,-2000.0,0.000545,2]
[356863000,1743342645179,-151.0,0.000545,120]
[356863002,1743342645189,-9000.0,0.000545,120]
[356863004,1743342645199,-9000.0,0.000545,120]
[356863006,1743342645209,-1096.850263,0.000545,120]
[356863008,1743342645219,-1096.850263,0.000545,120]
[356863009,1743342645228,-296.075494,0.000545,120]
[356863010,1743342645238,-296.075494,0.000545,120]
[356863012,1743342645247,-253.40652,0.000546,120]
[356863014,1743342645256,-150.0,0.00054675,120]
[356863015,1743342645266,-694.315363,0.00054794,120]
[356863017,1743342645276,-458.893979,0.00054794,120]
[356863019,1743342645285,-174.868253,0.00054794,120]
[356863021,1743342645294,-171.172692,0.00054794,120]
[356863024,1743342645303,-165.134829,0.00054794,120]
[356863027,1743342645312,-500.0,0.00054794,120]
[356863029,1743342645322,-547.09935895,0.00054794,120]
[356863031,1743342645333,-508.88465531,0.00054794,120]
[356863033,1743342645342,-237.52543565,0.00054794,120]
[356863035,1743342645352,-500.0,0.00054794,16]
[356863037,1743342645361,-500.0,0.00054794,120]
[356863039,1743342645370,-518.50796636,0.00054794,120]
[356863042,1743342645380,-500.0,0.00054794,120]
[356863045,1743342645389,-500.0,0.00054794,5]
[356863047,1743342645399,-311.28668394,0.00054794,120]
[356863049,1743342645409,-592.81902447,0.00054794,120]
[356863051,1743342645419,-525.19322549,0.00054794,120]
[356863053,1743342645429,-500.0,0.00054794,120]
[356863055,1743342645438,-500.0,0.00054794,2]
[356863057,1743342645448,-500.0,0.00054794,3]
[356863059,1743342645457,-525.67923705,0.00054794,120]
[356863061,1743342645467,-511.94932469,0.00054794,120]
[356863062,1743342645477,-266.3144904,0.00054794,120]
[356863063,1743342645486,-500.0,0.00054794,120]
[356863064,1743342645495,-515.00249052,0.00054794,120]
[356863065,1743342645505,-500.0,0.00054794,120]
[356863066,1743342645514,-531.76269306,0.00054794,120]
[356863067,1743342645524,-501.61600982,0.00054794,120]
[356863068,1743342645534,-501.35189761,0.00054794,120]
[356863069,1743342645542,-500.0,0.00054794,120]
[356863070,1743342645552,-500.0,0.00054794,120]
[356863071,1743342645560,-500.0,0.00054794,120]
[356863072,1743342645570,-400.33905437,0.00054794,120]
[356863073,1743342645579,-500.0,0.00054794,120]
[356863074,1743342645588,-504.53735185,0.00054794,120]
[356863075,1743342645598,-500.0,0.00054794,120]
[356863076,1743342645607,-500.0,0.00054794,2]
[356863077,1743342645617,-500.0,0.00054794,120]
[356863078,1743342645627,-500.0,0.00054794,120]
[356863079,1743342645636,-503.10032788,0.00054794,120]
[356863080,1743342645645,-500.0,0.00054794,120]
[356863081,1743342645655,-521.07305964,0.00054794,120]
[356863082,1743342645664,-500.0,0.00054794,120]
[356863083,1743342645673,-500.0,0.00054794,120]
[356863084,1743342645682,-500.0,0.00054794,120]
[356863085,1743342645691,-500.0,0.00054794,120]
[356863086,1743342645703,-500.0,0.00054794,120]
[356863087,1743342645713,-500.0,0.00054794,120]
[356863088,1743342645725,-500.0,0.00054794,120]
[356863089,1743342645735,-500.0,0.00054794,120]
[356863090,1743342645745,-500.0,0.00054794,120]
[356863091,1743342645754,-500.0,0.00054794,120]
[356863092,1743342645765,-500.0,0.00054794,120]
[356863093,1743342645775,-500.0,0.00054794,120]
[356863094,1743342645784,-527.11034634,0.00054794,120]
[356863095,1743342645794,-500.0,0.00054794,120]
[356863096,1743342645805,-500.0,0.00054794,120]
[356863098,1743342645815,-500.0,0.00054794,120]
[356863100,1743342645825,-500.0,0.00054794,120]
[356863102,1743342645834,-525.93959764,0.00054794,120]
[356863104,1743342645844,-500.0,0.00054794,120]
[356863106,1743342645854,-523.38272668,0.00054794,120]
[356863108,1743342645863,-500.0,0.00054794,120]
[356863110,1743342645873,-528.25418393,0.00054794,120]
[356863112,1743342645882,-500.0,0.00054794,120]
[356863114,1743342645892,-500.0,0.00054794,120]
[356863116,1743342645901,-500.0,0.00054794,120]
[356863126,1743342646000,-500.0,0.00054794,120]
[356863128,1743342646011,-500.0,0.00054794,120]
[356863130,1743342646020,-500.0,0.00054794,120]
[356863132,1743342646030,-500.0,0.00054794,120]
[356863134,1743342646040,-500.0,0.00054794,120]
[356863136,1743342646049,-500.0,0.00054794,30]
[356863138,1743342646059,-500.0,0.00054794,120]
[356863140,1743342646069,-500.0,0.00054794,120]
[356863142,1743342646078,-1470.81,0.00054794,120]
[356863144,1743342646087,-500.0,0.00054794,120]
[356863146,1743342646097,-565.67453621,0.00054794,120]
[356863148,1743342646106,-500.0,0.00054794,120]
[356863150,1743342646115,-500.0,0.00054794,120]
[356863152,1743342646125,-500.0,0.00054794,120]
[356863154,1743342646134,-500.0,0.00054794,120]
[356863156,1743342646144,-500.0,0.00054794,120]
[356863158,1743342646154,-500.0,0.00054794,120]
[356863160,1743342646163,-500.0,0.00054794,120]
[356863162,1743342646172,-500.0,0.00054794,120]
[356863164,1743342646181,-537.83071088,0.00054794,120]
[356863166,1743342646190,-500.0,0.00054794,120]
[356863168,1743342646204,-500.0,0.00054794,120]
[356863170,1743342646214,-500.0,0.00054794,120]
[356863172,1743342646223,-500.0,0.00054794,120]
[356863174,1743342646232,-540.3436648,0.00054794,120]
[356863176,1743342646241,-500.0,0.00054794,120]
[356863178,1743342646251,-500.0,0.00054794,120]
[356863180,1743342646260,-500.0,0.00054794,120]
[356863182,1743342646270,-548.93170119,0.00054794,120]
[356863184,1743342646279,-509.75257368,0.00054794,120]
[356863186,1743342646288,-500.0,0.00054794,120]
[356863188,1743342646297,-500.0,0.00054794,120]
[356863190,1743342646306,-500.0,0.00054794,120]
[356863192,1743342646316,-603.38815143,0.00054794,120]
[356863194,1743342646325,-500.0,0.00054794,120]
[356863196,1743342646335,-500.0,0.00054794,120]
[356863198,1743342646344,-938.71,0.00054794,2]
[356863200,1743342646353,-500.0,0.00054794,120]
[356863202,1743342646362,-500.0,0.00054794,120]
[356863204,1743342646372,-532.94245928,0.00054794,120]
[356863206,1743342646381,-500.0,0.00054794,120]
[356863208,1743342646390,-500.0,0.00054794,120]
[356863210,1743342646400,-500.0,0.00054794,120]
[356863212,1743342646409,-509.69837465,0.00054794,120]
[356863214,1743342646418,-500.0,0.00054794,120]
[356863216,1743342646427,-500.0,0.00054794,120]
[356863218,1743342646437,-500.0,0.00054794,120]
[356863220,1743342646448,-500.0,0.00054794,120]
[356863222,1743342646457,-500.0,0.00054794,120]
[356863224,1743342646467,-500.0,0.00054794,120]
[356863226,1743342646476,-500.0,0.00054794,120]
[356863228,1743342646485,-500.0,0.00054794,120]
[356863230,1743342646494,-500.0,0.00054794,120]
[356863232,1743342646503,-500.0,0.00054794,120]
[356863235,1743342646513,-500.0,0.00054794,120]
[356863236,1743342646522,-500.0,0.00054794,120]
[356863238,1743342646531,-500.0,0.00054794,120]
[356863241,1743342646540,-500.0,0.00054794,30]
[356863243,1743342646550,-500.0,0.00054794,120]
[356863245,1743342646559,-500.0,0.00054794,60]
[356863246,1743342646568,-500.0,0.00054794,120]
[356863249,1743342646577,-450.26821746,0.00054794,120]
[356863251,1743342646586,-500.0,0.00054794,120]
[356863252,1743342646595,-500.0,0.00054794,120]
[356863255,1743342646605,-500.0,0.00054794,120]
[356863256,1743342646614,-569.21567462,0.00054794,120]
[356863258,1743342646623,-500.0,0.00054794,120]
[356863261,1743342646632,-500.0,0.00054794,120]
[356863262,1743342646641,-500.0,0.00054794,120]
[356863265,1743342646651,-500.0,0.00054794,120]
[356863266,1743342646660,-500.0,0.00054794,120]
[356863269,1743342646669,-500.0,0.00054794,120]
[356863270,1743342646678,-500.0,0.00054794,120]
[356863272,1743342646687,-500.0,0.00054794,120]
[356863274,1743342646699,-500.0,0.00054794,120]
[356863277,1743342646708,-500.0,0.00054794,120]
[356863278,1743342646718,-215.03201424,0.00054794,120]
[356863280,1743342646731,-500.0,0.00054794,120]
[356863282,1743342646740,-500.0,0.00054794,120]
[356863284,1743342646750,-500.0,0.00054794,120]
[356863287,1743342646759,-500.0,0.00054794,120]
[356863288,1743342646769,-500.0,0.00054794,120]
[356863291,1743342646779,-500.0,0.00054794,120]
[356863292,1743342646787,-1000.0,0.00054794,2]
[356863294,1743342646797,-1000.0,0.00054794,2]
[356863297,1743342646807,-1000.0,0.00054794,2]
[356863299,1743342646816,-1000.0,0.00054794,2]
[356863300,1743342646825,-1000.0,0.00054794,2]
[356863302,1743342646835,-1000.0,0.00054794,2]
[356863304,1743342646845,-1000.0,0.00054794,2]
[356863307,1743342646854,-1000.0,0.00054794,2]
[356863308,1743342646864,-1083.57993073,0.00054794,2]
[356863310,1743342646873,-500.0,0.00054794,120]
[356863313,1743342646882,-500.0,0.00054794,120]
[356863314,1743342646892,-151.0,0.00054794,120]
[356863317,1743342646901,-500.0,0.00054794,120]
[356863319,1743342646911,-500.0,0.00054794,120]
[356863320,1743342646920,-500.0,0.00054794,120]
[356863323,1743342646929,-545.18503039,0.00054794,120]
[356863324,1743342646938,-500.0,0.00054794,120]
[356863326,1743342646949,-500.0,0.00054794,120]
[356863328,1743342646958,-500.0,0.00054794,120]
[356863330,1743342646968,-500.0,0.00054794,120]
[356863333,1743342646977,-500.0,0.00054794,120]
[356863334,1743342646986,-500.0,0.00054794,120]
[356863337,1743342646996,-500.0,0.00054794,120]
[356863338,1743342647005,-500.0,0.00054794,120]
[356863341,1743342647014,-522.06635323,0.00054794,120]
[356863343,1743342647024,-392.77145013,0.00054794,120]
[356863345,1743342647033,-522.68698397,0.00054794,120]
[356863347,1743342647042,-500.0,0.00054794,120]
[356863349,1743342647051,-500.0,0.00054794,120]
[356863350,1743342647060,-565.6,0.00054794,120]
[356863352,1743342647070,-500.0,0.00054794,120]
[356863354,1743342647079,-500.0,0.00054794,120]
[356863356,1743342647088,-500.0,0.00054794,120]
[356863359,1743342647098,-500.0,0.00054794,120]
[356863361,1743342647107,-500.0,0.00054794,120]
[356863362,1743342647116,-553.3549329,0.00054794,120]
[356863365,1743342647126,-500.0,0.00054794,120]
[356863367,1743342647135,-500.0,0.00054794,120]
[356863368,1743342647145,-521.96445191,0.00054794,120]
[356863371,1743342647155,-500.0,0.00054794,120]
[356863373,1743342647164,-500.0,0.00054794,120]
[356863374,1743342647173,-629.58,0.00054794,120]
[356863376,1743342647182,-289.14871028,0.00054794,120]
[356863378,1743342647191,-546.83243836,0.00054794,120]
[356863380,1743342647202,-500.0,0.00054794,120]
[356863383,1743342647212,-576.75919572,0.00054794,120]
[356863385,1743342647221,-569.53436252,0.00054794,120]
[356863386,1743342647230,-500.0,0.00054794,120]
[356863388,1743342647239,-587.05293836,0.00054794,120]
[356863390,1743342647248,-500.0,0.00054794,120]
[356863392,1743342647257,-500.0,0.00054794,120]
[356863394,1743342647266,-572.52671337,0.00054794,120]
[356863396,1743342647275,-526.08071152,0.00054794,120]
[356863398,1743342647284,-544.04498154,0.00054794,120]
[356863400,1743342647294,-500.0,0.00054794,120]
[356863402,1743342647304,-500.0,0.00054794,120]
[356863405,1743342647313,-500.0,0.00054794,120]
[356863407,1743342647323,-500.0,0.00054794,120]
[356863409,1743342647331,-500.0,0.00054794,120]
[356863410,1743342647341,-500.0,0.00054794,120]
[356863413,1743342647350,-500.0,0.00054794,120]
[356863414,1743342647359,-500.0,0.00054794,120]
[356863416,1743342647368,-500.0,0.00054794,120]
[356863417,1743342647378,-514.41876834,0.00054794,120]
[356863418,1743342647388,-550.54256576,0.00054794,120]
[356863419,1743342647397,-561.14,0.00054794,120]
[356863420,1743342647407,-566.78136441,0.00054794,120]
[356863421,1743342647416,-500.0,0.00054794,120]
[356863422,1743342647426,-500.0,0.00054794,120]
[356863423,1743342647435,-500.0,0.00054794,120]
[356863424,1743342647444,-500.0,0.00054794,120]
[356863425,1743342647454,-500.0,0.00054794,120]
[356863426,1743342647463,-571.34484217,0.00054794,120]
[356863427,1743342647472,-558.04389357,0.00054794,120]
[356863428,1743342647481,-503.90597902,0.00054794,120]
[356863429,1743342647490,-577.216458,0.00054794,120]
[356863430,1743342647499,-1368.26,0.00054794,120]
[356863431,1743342647508,-500.0,0.00054794,120]
[356863432,1743342647517,-500.0,0.00054794,120]
[356863433,1743342647526,-500.0,0.00054794,120]
[356863434,1743342647535,-500.0,0.00054794,120]
[356863435,1743342647544,-500.0,0.00054794,120]
[356863436,1743342647643,-500.0,0.00054794,120]
[356863437,1743342647653,-500.0,0.00054794,120]
[356863438,1743342647662,-500.0,0.00054794,120]
[356863439,1743342647672,-500.0,0.00054794,120]
[356863440,1743342647681,-563.61173476,0.00054794,120]
[356863441,1743342647690,-500.0,0.00054794,120]
[356863442,1743342647701,-567.96555527,0.00054794,120]
[356863443,1743342647710,-500.0,0.00054794,7]
[356863444,1743342647720,-500.0,0.00054794,120]
[356863445,1743342647734,-500.0,0.00054794,120]
[356863446,1743342647743,-500.0,0.00054794,120]
[356863447,1743342647752,-500.0,0.00054794,120]
[356863448,1743342647762,-500.0,0.00054794,120]
[356863449,1743342647771,-500.0,0.00054794,120]
[356863450,1743342647781,-500.0,0.00054794,120]
[356863451,1743342647790,-500.0,0.00054794,120]
[356863452,1743342647801,-500.0,0.00054794,120]
[356863453,1743342647810,-543.27925503,0.00054794,120]
[356863454,1743342647820,-500.0,0.00054794,120]
[356863455,1743342647829,-500.0,0.00054794,120]
[356863456,1743342647839,-500.0,0.00054794,120]
[356863457,1743342647848,-500.0,0.00054794,120]
[356863458,1743342647857,-541.31399329,0.00054794,120]
[356863459,1743342647866,-500.0,0.00054794,120]
[356863460,1743342647875,-7570.53,0.00054794,2]
[356863461,1743342647885,-500.0,0.00054794,120]
[356863462,1743342647894,-500.0,0.00054794,120]
[356863463,1743342647903,-529.39009313,0.00054794,120]
[356863464,1743342647912,-548.47,0.00054794,120]
[356863465,1743342647922,-544.99372332,0.00054794,120]
[356863466,1743342647931,-500.0,0.00054794,120]
[356863467,1743342647941,-500.0,0.00054794,120]
[356863468,1743342647950,-500.0,0.00054794,120]
[356863469,1743342647960,-500.0,0.00054794,120]
[356863470,1743342647969,-500.0,0.00054794,120]
[356863471,1743342647978,-522.26093623,0.00054794,120]
[356863472,1743342647987,-500.0,0.00054794,120]
[356863473,1743342647996,-1687.33,0.00054794,120]
[356863474,1743342648005,-393.8476567,0.00054794,2]
[356863475,1743342648015,-500.0,0.00054794,120]
[356863476,1743342648024,-500.0,0.00054794,120]
[356863477,1743342648033,-2000.0,0.00054794,2]
[356863478,1743342648042,-500.0,0.00054794,2]
[356863479,1743342648051,-500.0,0.00054794,120]
[356863480,1743342648060,-500.0,0.00054794,120]
[356863481,1743342648070,-500.0,0.00054794,120]
[356863482,1743342648079,-500.0,0.00054794,120]
[356863483,1743342648088,-547.75336903,0.00054794,120]
[356863484,1743342648098,-500.0,0.00054794,120]
[356863485,1743342648107,-500.0,0.00054794,2]
[356863486,1743342648116,-563.55634683,0.00054794,120]
[356863487,1743342648126,-163.84452563,0.00054794,120]
[356863488,1743342648136,-500.0,0.00054794,120]
[356863489,1743342648145,-500.0,0.00054794,120]
[356863490,1743342648155,-500.0,0.00054794,120]
[356863491,1743342648165,-500.0,0.00054794,120]
[356863492,1743342648174,-500.0,0.00054794,120]
[356863493,1743342648183,-500.0,0.00054794,120]
[356863494,1743342648192,-436.48764072,0.00054794,120]
[356863495,1743342648203,-520.85859276,0.00054794,120]
[356863496,1743342648212,-369.46595372,0.00054794,120]
[356863497,1743342648221,-500.0,0.00054794,120]
[356863498,1743342648230,-500.0,0.00054794,120]
[356863499,1743342648239,-500.0,0.00054794,120]
[356863500,1743342648249,-1806.15,0.00054794,120]
[356863501,1743342648257,-500.0,0.00054794,120]
[356863502,1743342648266,-1820.36,0.00054794,2]
[356863503,1743342648275,-500.0,0.00054794,120]
[356863504,1743342648284,-500.0,0.00054794,120]
[356863505,1743342648293,-500.0,0.00054794,120]
[356863506,1743342648301,-500.0,0.00054794,120]
[356863507,1743342648311,-569.80167942,0.00054794,120]
[356863508,1743342648319,-500.0,0.00054794,120]
[356863509,1743342648329,-500.0,0.00054794,120]
[356863510,1743342648338,-500.0,0.00054794,120]
[356863511,1743342648347,-500.0,0.00054794,120]
[356863512,1743342648357,-500.0,0.00054794,120]
[356863513,1743342648366,-601.23854208,0.00054794,120]
[356863514,1743342648375,-500.0,0.00054794,120]
[356863515,1743342648383,-500.0,0.00054794,120]
[356863516,1743342648392,-524.15132587,0.00054794,120]
[356863517,1743342648401,-500.0,0.00054794,120]
[356863518,1743342648411,-500.0,0.00054794,120]
[356863519,1743342648420,-500.0,0.00054794,120]
[356863520,1743342648429,-500.0,0.00054794,120]
[356863521,1743342648438,-507.94487606,0.00054794,120]
[356863522,1743342648447,-500.0,0.00054794,120]
[356863523,1743342648457,-741.91,0.00054794,120]
[356863524,1743342648466,-500.0,0.00054794,120]
[356863525,1743342648475,-545.2542191,0.00054794,120]
[356863526,1743342648483,-500.0,0.00054794,120]
[356863527,1743342648492,-569.70029418,0.00054794,120]
[356863528,1743342648501,-500.0,0.00054794,120]
[356863529,1743342648511,-500.0,0.00054794,120]
[356863530,1743342648520,-500.0,0.00054794,120]
[356863531,1743342648529,-500.0,0.00054794,120]
[356863532,1743342648539,-500.0,0.00054794,120]
[356863533,1743342648548,-500.0,0.00054794,120]
[356863534,1743342648557,-531.27878274,0.00054794,120]
[356863535,1743342648567,-500.0,0.00054794,120]
[356863536,1743342648576,-2897.35,0.00054794,120]
[356863537,1743342648585,-500.0,0.00054794,120]
[356863538,1743342648594,-500.0,0.00054794,120]
[356863539,1743342648604,-500.0,0.00054794,120]
[356863540,1743342648613,-500.0,0.00054794,120]
[356863541,1743342648622,-500.0,0.00054794,120]
[356863542,1743342648632,-500.0,0.00054794,120]
[356863543,1743342648641,-500.0,0.00054794,120]
[356863544,1743342648650,-500.0,0.00054794,120]
[356863545,1743342648659,-500.0,0.00054794,120]
[356863546,1743342648668,-500.0,0.00054794,120]
[356863547,1743342648677,-500.0,0.00054794,120]
[356863548,1743342648687,-500.0,0.00054794,120]
[356863549,1743342648696,-1741.42,0.00054794,120]
[356863550,1743342648705,-888.98,0.00054794,120]
[356863551,1743342648714,-552.61292431,0.00054794,120]
[356863552,1743342648724,-500.0,0.00054794,120]
[356863553,1743342648735,-500.0,0.00054794,120]
[356863554,1743342648744,-500.0,0.00054794,120]
[356863555,1743342648753,-500.0,0.00054794,120]
[356863556,1743342648762,-715.35,0.00054794,30]
[356863557,1743342648772,-500.0,0.00054794,120]
[356863558,1743342648781,-500.0,0.00054794,120]
[356863559,1743342648790,-500.0,0.00054794,120]
[356863560,1743342648800,-500.0,0.00054794,120]
[356863561,1743342648812,-500.0,0.00054794,120]
[356863562,1743342648822,-614.57,0.00054794,120]
[356863563,1743342648831,-500.0,0.00054794,120]
[356863564,1743342648841,-500.0,0.00054794,120]
[356863565,1743342648850,-500.0,0.00054794,120]
[356863566,1743342648859,-500.0,0.00054794,120]
[356863567,1743342648869,-759.95,0.00054794,120]
[356863568,1743342648878,-548.03311777,0.00054794,120]
[356863569,1743342648887,-2919.92,0.00054794,120]
[356863570,1743342648898,-500.0,0.00054794,120]
[356863571,1743342648908,-543.65609866,0.00054794,120]
[356863572,1743342648918,-500.0,0.00054794,120]
[356863573,1743342648927,-500.0,0.00054794,120]
[356863574,1743342648936,-500.0,0.00054794,120]
[356863575,1743342648946,-500.0,0.00054794,120]
[356863576,1743342648955,-500.0,0.00054794,120]
[356863577,1743342648965,-500.0,0.00054794,120]
[356863578,1743342648974,-500.0,0.00054794,120]
[356863579,1743342648984,-500.0,0.00054794,120]
[356863580,1743342648993,-500.0,0.00054794,120]
[356863581,1743342649003,-500.0,0.00054794,120]
[356863582,1743342649012,-500.0,0.00054794,120]
[356863583,1743342649021,-350.0,0.00054794,120]
[356863584,1743342649031,-2273.84,0.00054794,120]
[356863585,1743342649040,-500.0,0.00054794,120]
[356863586,1743342649050,-2273.84,0.00054794,120]
[356863587,1743342649059,-596.49412795,0.00054794,120]
[356863588,1743342649159,-2273.84,0.00054794,120]
[356863589,1743342649169,-2273.84,0.00054794,120]
[356863590,1743342649178,-500.0,0.00054794,120]
[356863591,1743342649188,-2273.84,0.00054794,120]
[356863592,1743342649197,-2273.84,0.00054794,120]
[356863593,1743342649206,-500.0,0.00054794,120]
[356863594,1743342649216,-2273.84,0.00054794,120]
[356863595,1743342649225,-2273.84,0.00054794,120]